bitfinex-derivatives/quotes_ETHF0:USTF0_20260128
["timestamp","ask_amount","ask_price","bid_price","bid_amount"]
[1769597735435,0.16088919,3030.2,3029.2,0.15774102]
[1769597737246,0.16564878,3029.8,3028.8,0.15774102]
[1769597742342,40.8,3030.2,3028.7,0.00294976]
[1769597742343,0.16063941,3029.5,3028.7,0.00294976]
[1769597742849,0.16063941,3029.5,3028.4,0.15774102]
[1769597743748,0.16113647,3029.4,3028.4,0.00275349]
[1769597743950,0.16399025,3029.4,3028.4,0.00275349]
[1769597744749,0.16195913,3029.1,3028.1,0.15774102]
[1769597745762,0.16195913,3029.1,3028.1,0.16156791]
[1769597746650,0.16105388,3028.6,3027.7,0.15774102]
[1769597747650,0.16105388,3028.6,3027.7,0.16178897]
[1769597748152,0.16105388,3028.6,3026.7,3.41499982]
[1769597748153,0.16105388,3028.6,3027.4,0.15774102]
[1769597749050,0.16105388,3028.6,3027.4,0.16110521]
[1769597750152,0.42439835,3028.6,3027.4,0.16110521]
[1769597750351,0.15771367,3028.5,3027.4,0.16110521]
[1769597752845,0.15501694,3028.7,3027.4,0.16110521]
[1769597753044,0.16532,3028.8,3027.4,0.16110521]
[1769597753552,0.32033694,3028.8,3027.4,0.16110521]
[1769597754155,0.58905627,3028.8,3027.4,0.16110521]
[1769597756355,0.1539991,3028.7,3027.4,0.16110521]
[1769597757158,0.16532,3028.8,3027.4,0.16110521]
[1769597758756,0.31758958,3028.8,3027.4,0.16110521]
[1769597758945,0.15226958,3028.7,3027.4,0.16110521]
[1769597761059,0.16532,3028.8,3027.4,0.16110521]
[1769597761359,0.41962377,3029.1,3027.4,0.16110521]
[1769597762261,0.41962377,3029.1,3027.4,0.32649521]
[1769597762559,0.41962377,3029.1,3027.5,0.14234441]
[1769597763261,0.14964841,3029.0,3027.5,0.14234441]
[1769597763559,0.14964841,3028.9,3027.5,0.14234441]
[1769597765658,1.46002655,3028.7,3027.5,0.14234441]
[1769597770765,0.14284914,3028.6,3027.5,0.14234441]
[1769597774168,1.31150941,3028.5,3027.5,0.14234441]
[1769597775066,0.14330843,3028.4,3027.5,0.14234441]
[1769597776869,1.31150941,3028.3,3027.5,0.14234441]
[1769597777069,1.45515351,3028.3,3027.5,0.14234441]
[1769597777371,0.1436441,3028.2,3027.4,0.00336419]
[1769597777964,0.1436441,3028.2,3027.4,0.1457086]
[1769597778363,1.31150941,3027.9,3027.4,0.1457086]
[1769597778964,1.31150941,3027.9,3027.1,5.87911067]
[1769597779870,1.31150941,3027.9,3027.1,5.88179087]
[1769597780470,1.31150941,3028.0,3027.1,5.88179087]
[1769597781061,1.31150941,3028.0,3027.2,0.14234441]
[1769597781669,0.15585364,3028.1,3027.2,0.14234441]
[1769597781869,1.31150941,3028.2,3027.2,0.14234441]
[1769597782973,1.46736305,3028.2,3027.2,0.14234441]
[1769597783372,1.31150941,3028.0,3027.2,0.14234441]
[1769597783673,1.46736305,3028.0,3027.2,0.14234441]
[1769597786676,1.46736305,3028.0,3027.2,6.02145508]
[1769597786876,0.13952764,3027.9,3027.2,6.02145508]
[1769597787173,1.31150941,3027.8,3027.2,6.02145508]
[1769597787377,1.31150941,3027.8,3027.2,0.14234441]
[1769597789280,1.45103705,3027.8,3027.2,0.14234441]
[1769597789781,0.13952764,3027.7,3027.1,0.0026802]
[1769597789970,0.13952764,3027.7,3027.1,0.13215417]
[1769597792882,1.45103705,3027.2,3026.7,7.18749872]
[1769597793088,1.45103705,3027.2,3026.7,0.12947397]
[1769597793388,1.45103705,3027.2,3026.6,3.26]
[1769597793688,0.13952764,3027.2,3026.6,3.26]
[1769597793988,0.14252999,3027.2,3026.6,3.26425512]
[1769597795090,0.00300235,3027.2,3026.7,0.12947397]
[1769597795291,0.13952764,3027.4,3026.7,0.12947397]
[1769597796292,0.14335435,3027.4,3026.7,0.12947397]
[1769597798593,0.14335435,3027.4,3026.6,3.26425512]
[1769597798794,0.14335435,3027.4,3026.6,3.39372909]
[1769597802398,0.14335435,3027.4,3026.7,0.12947397]
[1769597805900,0.14335435,3027.4,3026.8,0.12947397]
[1769597807395,0.13952764,3028.0,3026.9,1.31150941]
[1769597807597,0.13952764,3028.0,3026.6,3.26425512]
[1769597807598,0.13952764,3028.0,3027.3,1.44098338]
[1769597808494,0.14211595,3028.0,3027.3,1.44098338]
[1769597809205,0.14211595,3028.0,3027.3,0.12947397]
[1769597809504,0.14211595,3028.0,3027.1,1.44098338]
[1769597810703,3.55170666,3027.9,3027.1,1.44098338]
[1769597810904,0.13952764,3027.9,3027.1,1.44098338]
[1769597811798,0.13952764,3027.9,3027.2,0.12947397]
[1769597812597,0.00258831,3028.0,3027.2,0.12947397]
[1769597812798,3.41297625,3027.9,3027.2,0.12947397]
[1769597812999,0.00258831,3028.0,3027.2,0.12947397]
[1769597813303,3.41297682,3027.9,3027.2,0.12947397]
[1769597813503,0.14211595,3028.0,3027.2,0.12947397]
[1769597813703,3.41349423,3027.9,3027.2,0.12947397]
[1769597813899,0.14211595,3028.0,3027.2,0.12947397]
[1769597814099,3.41349393,3027.9,3027.4,0.12947397]
[1769597814405,0.14211595,3028.0,3027.4,0.12947397]
[1769597814700,0.00258831,3028.0,3027.4,0.12947397]
[1769597818403,0.19684643,3028.0,3027.4,0.12947397]
[1769597820306,0.00258831,3028.0,3027.4,0.12947397]
[1769597821910,0.16533,3028.6,3027.1,1.31150941]
[1769597821911,0.19425812,3028.6,3027.6,0.18754919]
[1769597822110,0.19425812,3028.4,3027.6,0.18754919]
[1769597822408,3.4177272,3028.3,3027.6,0.18754919]
[1769597822608,0.19425812,3028.6,3027.6,0.18754919]
[1769597822811,0.19425812,3028.4,3027.6,0.18754919]
[1769597823011,3.41796523,3028.3,3027.6,0.18754919]
[1769597823211,0.19425812,3028.4,3027.6,0.18754919]
[1769597823512,3.41743566,3028.3,3027.6,0.18754919]
[1769597823710,1.50576753,3028.4,3027.6,0.18754919]
[1769597823911,3.41743491,3028.3,3027.6,0.18754919]
[1769597824111,1.50576753,3028.4,3027.6,0.18754919]
[1769597824309,3.41708482,3028.3,3027.6,0.18754919]
[1769597824512,0.19425812,3028.1,3027.2,0.18754919]
[1769597846630,3.56392497,3028.0,3027.2,0.18754919]
[1769597846829,0.15352055,3028.0,3027.2,0.18754919]
[1769597847824,0.15352055,3028.0,3027.0,0.15528009]
[1769597850430,0.15352055,3027.8,3026.8,3.38528009]
[1769597850831,0.15352055,3027.6,3026.8,0.15528009]
[1769597851328,0.15352055,3027.4,3026.6,0.00425512]
[1769597851529,0.15352055,3027.8,3026.6,0.15953521]
[1769597851732,3.41122741,3027.7,3026.6,0.15953521]
[1769597851929,3.41122741,3027.6,3026.6,0.15953521]
[1769597852131,0.15352055,3027.8,3026.6,0.15953521]
[1769597852331,3.40999346,3027.7,3026.6,0.15953521]
[1769597852535,0.15352055,3027.8,3026.6,0.15953521]
[1769597852835,3.41000484,3027.7,3026.6,0.15953521]
[1769597853034,0.15352055,3027.8,3026.6,0.15953521]
[1769597853222,3.41000319,3027.7,3026.6,0.15953521]
[1769597853427,0.15352055,3027.8,3026.6,0.15953521]
[1769597853731,3.40927196,3027.7,3026.6,0.15953521]
[1769597853927,0.0042876,3028.6,3026.6,0.15953521]
[1769597853928,7.0959867,3029.0,3027.6,2.62368092]
[1769597854130,0.16521,3030.7,3028.9,1.31184046]
[1769597854334,3.39197967,3030.6,3029.3,1.31184046]
[1769597854632,3.39197967,3030.5,3029.3,1.31184046]
[1769597854831,3.39197967,3030.4,3029.3,1.31184046]
[1769597855029,0.00353861,3030.5,3029.3,1.31547466]
[1769597855231,0.00353861,3030.5,3029.3,0.0036342]
[1769597856032,1.47307233,3030.4,3029.3,0.0036342]
[1769597856227,0.16123187,3030.3,3029.3,0.0036342]
[1769597856431,0.16123187,3030.3,3028.7,0.16532]
[1769597857331,0.16123187,3030.3,3028.7,0.0028081]
[1769597857332,2.10023187,3030.3,3028.7,0.0028081]
[1769597857632,0.16145087,3029.9,3028.7,0.0028081]
[1769597869252,0.1697732,3029.5,3027.9,0.02718747]
[1769597870450,0.1697732,3029.5,3027.9,0.03146112]
[1769597872756,0.1697732,3029.5,3027.9,0.00427365]
[1769597874251,0.1697732,3029.5,3027.8,1.31184046]
[1769597874252,0.1697732,3029.2,3027.4,5.92341216]
[1769597874558,0.1697732,3029.0,3027.3,0.18640452]
[1769597874758,0.1697732,3029.0,3027.4,0.02106091]
[1769597875049,0.16122353,3028.8,3027.4,0.02106091]
[1769597875254,0.16122353,3028.8,3027.4,0.02518847]
[1769597881561,0.16122353,3028.8,3027.4,0.00412756]
[1769597882255,0.16122353,3028.6,3027.4,0.00412756]
[1769597887567,0.16126056,3028.3,3027.4,0.00412756]
[1769597887866,0.16388561,3028.3,3027.4,0.00412756]
[1769597891169,0.16388561,3028.3,3027.5,1.31183103]
[1769597892060,0.16388561,3028.3,3027.7,1.31183103]
[1769597893274,0.16147679,3029.2,3028.1,1.33008901]
[1769597893475,0.16147679,3029.2,3028.1,1.31183103]
[1769597893673,0.16147679,3029.2,3027.9,1.33008901]
[1769597894176,0.16386412,3029.2,3027.9,1.33008901]
[1769597896679,0.16386412,3029.2,3028.0,0.0124005]
[1769597896882,0.16386412,3029.2,3028.1,1.31183103]
[1769597897275,0.16386412,3029.2,3028.3,1.31183103]
[1769597897879,0.16386412,3029.2,3028.3,1.32170806]
[1769597901172,3.26116542,3029.1,3028.3,1.32170806]
[1769597901376,0.16302071,3029.1,3028.3,1.32170806]
[1769597901578,0.16302071,3029.1,3028.3,0.00987703]
[1769597902381,0.16302071,3029.1,3028.1,1.31688513]
[1769597907980,0.16302071,3029.1,3028.1,1.31183103]
[1769597915884,0.16302071,3029.1,3028.3,1.31183103]
[1769597916185,0.16302071,3029.1,3028.0,1.31183103]
[1769597927903,1.47485174,3029.1,3027.9,6.08442538]
[1769597928203,0.16527762,3029.0,3027.9,6.08442538]
[1769597932006,0.16527762,3029.0,3028.0,1.31183103]
[1769597940010,0.16527762,3029.0,3027.9,1.47720103]
[1769597946818,0.16527762,3029.0,3027.9,1.31183103]
[1769597947714,0.16527762,3029.0,3027.6,4.4300756]
[1769597948014,0.16527762,3029.0,3027.6,4.5954556]
[1769597949722,0.16527762,3029.0,3027.7,5.91905538]
[1769597949923,0.16527762,3029.0,3027.7,6.08443538]
[1769597952629,0.1677701,3029.2,3027.7,6.08443538]
[1769597952823,3.26818829,3029.1,3027.7,6.08443538]
[1769597953122,3.26818829,3029.0,3027.7,6.08443538]
[1769597953324,0.1677701,3029.2,3027.7,6.08443538]
[1769597953525,3.26809726,3029.1,3027.7,6.08443538]
[1769597953725,3.26809726,3029.0,3027.8,0.16537]
[1769597953924,0.1677701,3029.2,3027.8,0.16537]
[1769597954130,3.26785529,3029.1,3027.8,0.16537]
[1769597954426,3.26785529,3029.0,3027.8,0.16537]
[1769597954622,0.1677701,3029.2,3027.8,0.16537]
[1769597954821,3.26728679,3029.1,3027.8,0.16537]
[1769597955031,3.26728679,3029.0,3027.8,0.16537]
[1769597955228,0.1677701,3029.2,3027.8,0.16537]
[1769597955529,3.43250451,3029.1,3027.8,0.16537]
[1769597955729,3.26729753,3029.0,3027.8,0.16537]
[1769597956028,0.16520698,3029.1,3027.8,0.16537]
[1769597956227,3.26728681,3029.0,3027.8,0.16537]
[1769597956527,0.16520698,3029.1,3027.8,0.16537]
[1769597956718,3.42946615,3029.0,3027.8,0.16537]
[1769597956920,0.16218805,3029.0,3027.8,0.16537]
[1769597957127,0.16218805,3029.0,3028.0,5.91905538]
[1769597959426,0.16218805,3029.0,3027.9,5.91905538]
[1769597964335,0.16218805,3029.0,3027.8,6.08442538]
[1769597973052,0.16218805,3029.0,3027.8,0.16537]
[1769597973851,0.16218805,3029.0,3027.7,5.91905538]
[1769597987060,3.25820571,3028.9,3027.7,5.91905538]
[1769597987265,0.16369446,3028.7,3027.6,4.4300756]
[1769597993762,0.16369446,3028.7,3027.6,1.3110756]
[1769597993970,0.16462086,3028.5,3027.4,0.00412756]
[1769597994169,0.16462086,3028.3,3027.4,0.00412756]
[1769598000376,0.12284058,3028.3,3027.4,0.00412756]
[1769598001068,0.16535,3028.2,3027.0,3.306]
[1769598001275,1.4763956,3028.7,3027.1,0.00740584]
[1769598001474,3.24174537,3028.6,3027.1,0.00740584]
[1769598001674,3.24174537,3028.5,3027.1,0.00740584]
[1769598001974,2.64131366,3028.4,3027.1,0.0109267]
[1769598002273,2.64131366,3028.4,3027.2,0.00624656]
[1769598002573,0.14460702,3028.3,3027.2,0.00624656]
[1769598003671,0.14460702,3028.3,3027.3,0.00624655]
[1769598006176,0.14460702,3028.3,3027.1,0.00352086]
[1769598007178,0.14460702,3028.3,3026.6,0.00641471]
[1769598007577,0.14452293,3028.0,3026.7,1.31223547]
[1769598008174,0.14452293,3028.0,3026.7,1.31460029]
[1769598008875,0.14452293,3028.0,3026.9,1.31223547]
[1769598009082,0.14452293,3028.0,3027.1,1.31223547]
[1769598010081,0.14452293,3028.0,3026.9,1.31223547]
[1769598011381,0.14452293,3028.0,3026.7,1.32577739]
[1769598011583,0.14275981,3027.8,3026.7,1.32577739]
[1769598012474,0.14275981,3027.8,3026.7,1.31460029]
[1769598014977,0.14275981,3027.8,3026.7,0.00236482]
[1769598016578,0.14426064,3027.6,3026.7,0.00236482]
[1769598017083,0.14426064,3027.4,3026.7,0.00236482]
[1769598017281,0.14426064,3027.4,3026.4,1.31917467]
[1769598018476,0.14426064,3027.4,3026.4,1.32333742]
[1769598019183,0.14424648,3027.0,3026.0,0.00696752]
[1769598019487,0.14424648,3027.7,3026.5,1.31920299]
[1769598020179,0.14658918,3027.7,3026.5,1.32245277]
[1769598020589,0.1443817,3027.6,3026.5,1.32245277]
[1769598020886,0.1443817,3027.6,3026.5,0.00324978]
[1769598021086,0.1443817,3027.4,3026.5,0.00324978]
[1769598022384,1.31223547,3027.3,3026.5,0.00324978]
[1769598022587,0.14599327,3027.2,3026.5,0.00672369]
[1769598023285,0.14599327,3027.4,3026.7,1.31223547]
[1769598023486,0.14833597,3027.7,3026.8,0.0034739]
[1769598025194,0.14833597,3027.7,3026.6,0.00337263]
[1769598029798,1.46057144,3027.7,3026.6,0.00337263]
[1769598030000,0.14843393,3027.6,3026.6,0.00337263]
[1769598031000,1.31223547,3027.5,3026.5,0.00324978]
[1769598031203,0.14843393,3027.4,3026.5,0.00324978]
[1769598035902,0.14843393,3027.4,3026.5,1.31548525]
[1769598036700,0.1511726,3027.7,3026.5,1.31548525]
[1769598036901,0.1511726,3027.7,3026.7,1.31223547]
[1769598037101,3.42527679,3027.6,3026.5,1.31548525]
[1769598037404,0.1488299,3027.4,3026.5,1.31548525]
[1769598043712,0.1488299,3027.4,3026.5,0.00324978]
[1769598045510,0.1488299,3027.4,3026.5,1.31548525]
[1769598051016,0.1488299,3027.4,3026.5,0.00324978]
[1769598052912,0.1488299,3027.4,3026.5,1.31548525]
[1769598053518,0.1488299,3027.4,3026.5,0.00324978]
[1769598054912,0.1488299,3027.4,3026.5,1.31548525]
[1769598055714,0.154046,3027.6,3026.7,1.31223547]
[1769598058118,0.154046,3027.6,3026.5,7.23454063]
[1769598058318,0.15536647,3027.5,3026.6,3.146]
[1769598058720,0.15536647,3027.3,3026.6,3.146]
[1769598058916,0.15536647,3027.3,3026.5,0.00324978]
[1769598059420,0.15536647,3027.1,3026.5,0.00324978]
[1769598064728,0.15465756,3027.5,3026.5,1.31548525]
[1769598067730,0.15465756,3027.5,3026.5,0.00324978]
[1769598077362,16.838,3028.7,3027.2,0.13725768]
[1769598077546,3.27136407,3028.6,3027.3,0.13725768]
[1769598077744,1.31231562,3030.0,3028.0,0.13725768]
[1769598078049,3.27026057,3029.9,3028.2,0.13725768]
[1769598078347,1.31231562,3029.6,3028.0,1.94]
[1769598078541,1.31231562,3029.2,3028.0,1.94]
[1769598079346,0.14428032,3029.1,3028.0,1.94]
[1769598080838,0.14428032,3029.1,3027.8,0.13725768]
[1769598081044,0.14428032,3028.7,3027.6,2.07038102]
[1769598081350,0.14428032,3028.7,3027.7,0.13038102]
[1769598083851,0.14428032,3029.5,3027.7,0.13038102]
[1769598089052,0.14428032,3029.5,3027.8,2.07324548]
[1769598091256,0.14428032,3029.5,3027.9,0.13390548]
[1769598092353,0.1402882,3029.1,3027.5,2.07146361]
[1769598092560,0.1402882,3029.1,3027.6,0.13246361]
[1769598094755,0.1402882,3029.3,3027.6,0.13246361]
[1769598094955,0.1402882,3029.3,3028.0,0.13162171]
[1769598105160,0.1402882,3029.3,3028.1,2.52252412]
[1769598105761,0.1402882,3029.3,3028.2,0.13352412]
[1769598107968,0.1402882,3029.1,3028.1,5.91905538]
[1769598108963,0.1402882,3028.7,3027.8,7.3686066]
[1769598109168,0.1402882,3028.7,3027.8,0.13420558]
[1769598116976,0.1402882,3028.7,3027.6,3.25954477]
[1769598117168,0.1402882,3028.7,3027.7,0.13554477]
[1769598117575,0.14085171,3028.0,3027.3,7.23440102]
[1769598117775,0.14085171,3028.0,3027.0,0.13554477]
[1769598119784,0.14085171,3028.0,3026.9,3.124]
[1769598121084,0.14085171,3028.0,3026.8,0.14645613]
[1769598122188,0.14085171,3028.0,3026.7,3.127]
[1769598122683,0.14085171,3028.0,3026.7,3.27345613]
[1769598123684,0.14085171,3028.0,3026.7,0.14645613]
[1769598124987,0.14085171,3028.8,3027.1,0.14645613]
[1769598128083,0.14085171,3028.8,3027.2,1.31231562]
[1769598128284,0.14085171,3028.8,3027.3,0.14645613]
[1769598129693,0.14085171,3028.7,3027.5,1.3114371]
[1769598130086,0.14085171,3028.7,3027.5,1.45789323]
[1769598133097,0.14085171,3028.7,3027.5,1.3114371]
[1769598133593,0.14085171,3028.7,3027.5,1.45789323]
[1769598136394,0.14085171,3028.5,3027.5,0.14645613]
[1769598140691,0.14085171,3028.1,3027.0,0.14645613]
[1769598140892,0.14085171,3027.9,3027.0,0.14645613]
[1769598144099,0.14085171,3027.9,3027.1,1.45789323]
[1769598145700,0.14085171,3027.9,3027.2,0.1758847]
[1769598146902,0.1895774,3028.3,3027.6,0.1758847]
[1769598147102,0.1895774,3028.9,3027.8,0.1758847]
[1769598147304,0.1895774,3028.6,3027.5,0.1758847]
[1769598148100,0.1895774,3028.4,3027.5,0.1758847]
[1769598148502,0.1895774,3028.2,3027.2,0.1758847]
[1769598152205,0.1895774,3028.2,3027.0,2.1148847]
[1769598152505,0.1895774,3028.2,3027.0,0.1758847]
[1769598152998,1.3114371,3028.1,3027.0,0.1758847]
[1769598153304,0.1895774,3028.0,3027.0,0.1758847]
[1769598155803,0.1895774,3027.8,3027.0,0.1758847]
[1769598156102,0.1895774,3027.8,3026.9,0.1758847]
[1769598158209,0.1895774,3027.2,3026.7,0.1]
[1769598158413,0.19246022,3027.2,3026.7,0.1]
[1769598160307,0.1895774,3026.8,3025.8,0.1758847]
[1769598161301,0.1895774,3026.8,3025.8,0.18001493]
[1769598162205,0.1895774,3026.8,3025.8,0.00413023]
[1769598164607,0.1895774,3026.6,3025.8,0.00413023]
[1769598164800,0.1895774,3026.2,3025.1,3.5273218]
[1769598165001,0.1895774,3026.2,3025.2,0.1758847]
[1769598165404,0.1895774,3026.2,3025.3,1.3114371]
[1769598165911,0.1895774,3026.2,3025.3,1.31534262]
[1769598169311,0.1895774,3026.2,3025.3,1.49122732]
[1769598170708,0.1895774,3026.4,3025.7,1.4873218]
[1769598171014,0.1895774,3026.6,3025.8,0.1758847]
[1769598172214,0.1895774,3026.5,3025.4,0.1758847]
[1769598173911,1.31431992,3027.2,3026.0,0.1758847]
[1769598174116,0.1895774,3026.9,3026.1,1.4873218]
[1769598174309,0.1895774,3026.9,3026.1,0.1758847]
[1769598175116,0.16986039,3026.8,3026.1,0.1758847]
[1769598175617,0.16986039,3026.8,3025.9,0.17561702]
[1769598177417,0.16986039,3026.8,3026.0,0.17561702]
[1769598177618,0.16986039,3027.0,3026.2,0.17561702]
[1769598178712,0.00288282,3027.2,3026.4,0.17561702]
[1769598179711,0.17274321,3027.2,3026.4,0.17561702]
[1769598180509,0.17274321,3027.2,3026.1,0.17561702]
[1769598181417,0.17274321,3027.2,3026.2,0.17561702]
[1769598185422,0.16986039,3027.0,3026.2,0.17561702]
[1769598185617,0.16986039,3027.0,3026.0,0.17331144]
[1769598186220,1.3114371,3026.9,3026.0,0.17331144]
[1769598186427,0.16986039,3026.6,3025.8,0.17176612]
[1769598188627,0.16986039,3026.6,3025.6,0.17373395]
[1769598189128,0.16986039,3026.6,3025.7,0.17263892]
[1769598189332,0.16986039,3026.6,3025.9,0.17263892]
[1769598189522,0.16986039,3026.6,3025.8,1.3114371]
[1769598189825,0.16986039,3026.6,3025.7,0.17263892]
[1769598190230,1.48129749,3026.9,3025.7,0.17263892]
[1769598190630,0.16986039,3026.8,3025.7,0.17263892]
[1769598190818,0.16986039,3027.0,3026.1,0.17393658]
[1769598194422,0.16986039,3026.9,3025.9,0.17561702]
[1769598195033,0.16986039,3026.9,3025.5,2.11482577]
[1769598195434,0.16986039,3026.7,3025.5,2.11482577]
[1769598196833,0.16986039,3026.5,3025.3,0.17427499]
[1769598198239,0.16986039,3025.9,3025.0,0.1]
[1769598199437,0.16986039,3025.9,3025.0,0.10399187]
[1769598200442,0.16986039,3026.4,3025.1,0.16665143]
[1769598200632,0.16986039,3026.2,3025.1,0.16665143]
[1769598204544,0.16986039,3026.2,3025.0,0.10399187]
[1769598204844,0.16986039,3026.2,3025.1,0.15157526]
[1769598208754,0.16986039,3026.2,3025.0,0.00399187]
[1769598210548,0.16986039,3026.2,3025.0,0.14888761]
[1769598213544,0.16986039,3026.2,3025.0,0.1463055]
[1769598215055,0.16986039,3026.2,3025.0,0.00399187]
[1769598215555,0.14703134,3026.0,3025.0,0.00399187]
[1769598220957,0.14703134,3025.7,3024.8,0.1]
[1769598221156,0.14703134,3025.7,3024.4,0.1326796]
[1769598222059,0.14703134,3025.7,3024.4,0.13594868]
[1769598226065,0.14703134,3025.4,3024.4,0.00326908]
[1769598229466,0.14703134,3025.4,3023.8,7.22605551]
[1769598229467,0.14703134,3025.1,3023.8,7.22605551]
[1769598229763,0.14703134,3025.1,3023.8,0.12689951]
[1769598230562,0.14703134,3025.1,3023.8,0.13108329]
[1769598232770,0.14703134,3025.0,3023.8,0.00418378]
[1769598233066,0.14995164,3025.0,3023.8,0.12958325]
[1769598233967,0.14995164,3025.0,3023.8,0.00418378]
[1769598234163,0.14995164,3025.0,3023.8,0.1310633]
[1769598235065,0.14995164,3025.0,3023.8,0.00418378]
[1769598235366,0.14995164,3025.0,3023.4,0.28736576]
[1769598235571,0.14380875,3024.6,3023.4,0.28736576]
[1769598235771,0.14380875,3024.6,3023.4,0.41862967]
[1769598236163,0.14380875,3024.6,3023.5,0.13033316]
[1769598236566,0.14380875,3024.6,3023.5,0.13372337]
[1769598238273,0.14380875,3024.9,3023.5,0.13372337]
[1769598243270,0.14380875,3024.9,3023.6,5.328]
[1769598243967,0.14380875,3024.9,3023.7,5.331]
[1769598244472,0.14380875,3024.9,3023.5,0.00339021]
[1769598244872,0.14380875,3024.9,3023.5,1.94539021]
[1769598245277,0.14380875,3024.5,3023.5,1.94539021]
[1769598246277,0.14380875,3024.5,3023.5,0.00339021]
[1769598247275,0.14380875,3024.9,3023.5,0.12538388]
[1769598248290,0.14380875,3024.9,3023.6,5.41630539]
[1769598248578,0.14380875,3024.9,3023.7,0.12330539]
[1769598249783,0.14380875,3024.9,3023.8,0.12330539]
[1769598250186,0.14380875,3025.2,3024.2,0.12428649]
[1769598250385,0.13315966,3025.2,3024.2,0.12428649]
[1769598251284,0.13714897,3025.2,3024.2,0.12428649]
[1769598251789,0.13714897,3025.2,3024.3,2.139]
[1769598252680,0.13714897,3025.2,3024.3,1.942]
[1769598252875,0.13714897,3025.2,3023.6,0.13578343]
[1769598253082,0.13714897,3025.2,3024.2,1.942]
[1769598253383,0.13714897,3025.2,3023.9,0.13578343]
[1769598253583,0.14380875,3025.1,3024.0,5.38878343]
[1769598253976,0.14380875,3025.1,3024.1,0.13331408]
[1769598255178,0.14380875,3025.1,3024.1,1.44781794]
[1769598256386,0.14380875,3025.1,3024.2,2.073]
[1769598258991,0.14380875,3024.7,3023.8,3.44573133]
[1769598259190,0.14380875,3024.7,3024.0,2.062]
[1769598259391,0.14380875,3024.7,3023.8,0.13473133]
[1769598259993,0.14380875,3025.0,3024.0,0.13465927]
[1769598261398,0.14380875,3024.9,3023.8,0.13465927]
[1769598261707,0.14380875,3024.9,3023.8,2.25465927]
[1769598263100,0.14380875,3024.9,3023.8,3.56916313]
[1769598264698,0.14380875,3024.9,3023.8,1.44916313]
[1769598264901,0.14380875,3024.9,3023.8,3.75216313]
[1769598267308,0.14380875,3024.9,3023.9,0.12572528]
[1769598270321,0.13789431,3025.1,3024.4,1.31450386]
[1769598270509,0.13789431,3025.1,3024.0,1.44012996]
[1769598276509,0.13789431,3024.9,3024.0,0.1256261]
[1769598278324,0.13789431,3024.7,3023.8,0.12650038]
[1769598278621,0.13789431,3024.7,3023.9,3.014]
[1769598280423,0.13789431,3024.7,3023.8,3.43750038]
[1769598280424,0.13789431,3024.7,3023.8,0.12650038]
[1769598280722,0.13789431,3024.7,3023.9,2.768]
[1769598280918,0.13789431,3024.3,3023.5,0.12976282]
[1769598281124,0.13789431,3024.3,3023.6,3.016]
[1769598281824,0.13789431,3024.3,3023.5,3.14676282]
[1769598283622,0.13789431,3024.3,3023.5,3.14976282]
[1769598285025,0.13789431,3024.1,3023.5,3.02739021]
[1769598285328,0.13789431,3024.1,3023.5,0.00339021]
[1769598286021,0.13789431,3024.4,3023.5,0.13234181]
[1769598286224,0.13789431,3024.4,3023.6,1.44345546]
[1769598286536,0.13789431,3024.9,3024.2,1.44345546]
[1769598286830,0.14188362,3025.2,3024.3,0.1289516]
[1769598287026,0.13789431,3025.0,3024.3,0.1289516]
[1769598287429,0.13789431,3025.0,3024.1,0.1289516]
[1769598291533,0.14188362,3025.2,3024.4,1.31450386]
[1769598291929,0.14188362,3025.2,3024.4,1.44678381]
[1769598292232,0.00398931,3025.2,3024.5,0.13227995]
[1769598293441,0.13789431,3025.7,3024.7,0.13227995]
[1769598293641,0.13789431,3025.5,3024.7,0.13227995]
[1769598294535,0.14104247,3025.5,3024.7,0.13227995]
[1769598296339,0.14104247,3025.5,3024.7,0.13147995]
[1769598299641,0.14104247,3025.5,3024.5,2.51049008]
[1769598300138,0.13358736,3025.3,3024.5,0.12349008]
[1769598300332,0.13358736,3025.3,3024.4,1.942]
[1769598301438,0.13358736,3025.3,3024.3,0.12335864]
[1769598301642,1.44809122,3024.6,3023.6,0.12335864]
[1769598301834,0.13358736,3024.5,3023.7,0.12335864]
[1769598302234,0.13358736,3025.1,3024.1,0.12218105]
[1769598302440,0.13358736,3025.1,3024.0,1.31450386]
[1769598302441,0.13358736,3025.1,3024.3,0.12218105]
[1769598302839,0.13358736,3025.1,3024.1,0.12218105]
[1769598304248,0.13358736,3024.9,3024.1,0.12218105]
[1769598304839,0.13358736,3024.9,3023.9,0.12437295]
[1769598308040,0.13358736,3024.9,3023.5,0.12751832]
[1769598308246,0.13358736,3024.7,3023.6,0.12412811]
[1769598309846,0.13358736,3025.0,3024.0,0.12356575]
[1769598310345,0.13358736,3025.0,3024.1,1.43806961]
[1769598310546,0.13358736,3025.0,3024.2,0.12356575]
[1769598311941,0.00314816,3025.5,3024.7,1.43999195]
[1769598312148,3.47423341,3025.4,3024.7,1.43999195]
[1769598312341,0.13673552,3025.5,3024.7,0.12548809]
[1769598315750,0.00314816,3025.5,3024.7,0.12548809]
[1769598316252,0.13358736,3026.3,3025.1,0.12055331]
[1769598316550,3.60813203,3026.2,3025.1,0.12055331]
[1769598316753,0.13358736,3026.2,3025.1,0.12055331]
[1769598317646,0.13665959,3026.2,3025.1,0.12055331]
[1769598324244,0.13665959,3026.2,3025.2,1.941]
[1769598325051,0.13665959,3026.2,3024.2,7.22605551]
[1769598325355,0.14109449,3025.8,3024.4,0.12096223]
[1769598325546,0.14109449,3025.8,3024.4,2.18196223]
[1769598325750,0.14109449,3025.8,3024.5,0.12099176]
[1769598326743,0.14109449,3025.8,3024.1,0.11903018]
[1769598326952,0.14109449,3025.8,3024.2,5.251]
[1769598327451,0.14109449,3025.8,3024.2,5.37003018]
[1769598328153,0.14109449,3025.8,3024.2,0.11903018]
[1769598328657,0.13753462,3025.4,3024.2,0.11903018]
[1769598336963,0.13753462,3025.4,3024.0,2.07211983]
[1769598338168,0.13753462,3025.4,3024.0,0.13111983]
[1769598338362,0.13753462,3025.0,3023.6,0.13034877]
[1769598340372,0.13753462,3025.0,3023.7,0.13571726]
[1769598347976,0.13753462,3025.0,3023.5,0.00339021]
[1769598348173,0.13753462,3025.0,3023.5,2.08411261]
[1769598348377,0.13753462,3025.0,3023.5,2.16611261]
[1769598348579,0.13753462,3024.7,3023.5,2.02639021]
[1769598348774,0.13753462,3024.3,3023.5,0.00339021]
[1769598353886,0.13753462,3024.3,3023.4,0.28736576]
[1769598354180,0.13753462,3024.3,3022.8,0.1397224]
[1769598354778,0.13845742,3024.0,3022.8,0.14382766]
[1769598354982,0.14192698,3024.0,3022.8,0.14382766]
[1769598368391,0.14192698,3024.0,3022.8,2.08582766]
[1769598369795,0.14192698,3024.0,3022.8,0.14382766]
[1769598370091,0.14192698,3024.0,3022.8,0.00410526]
[1769598371990,0.75754914,3023.4,3022.8,0.00410526]
[1769598372389,0.61909172,3023.4,3022.8,0.14672222]
[1769598373599,0.13845742,3023.3,3022.5,0.14261696]
[1769598374596,0.13845742,3023.3,3022.5,0.14505101]
[1769598374795,0.61909172,3023.4,3022.3,0.14261696]